fUSD/lending_fUSD_20250426
["ID","MTS","AMOUNT","RATE_DAILY","PERIOD"]
[359107700,1745710247939,-151.0,0.00019986,2]
[359107702,1745710247948,-151.0,0.00019986,2]
[359107704,1745710247956,-151.0,0.00019986,2]
[359107706,1745710247966,-151.0,0.00019986,2]
[359107708,1745710247975,-834.631864,0.00019986,2]
[359107710,1745710247985,-834.631864,0.00019986,2]
[359107712,1745710247994,-151.0,0.00019986,2]
[359107714,1745710248003,-151.0,0.00019986,2]
[359107716,1745710248013,-628.450043,0.00019986,2]
[359107718,1745710248022,-276.175567,0.00019986,2]
[359107719,1745710248031,-628.450043,0.00019986,2]
[359107721,1745710248041,-276.175567,0.00019986,2]
[359107723,1745710248049,-170.07599,0.00019986,2]
[359107725,1745710248059,-170.07599,0.00019986,2]
[359107727,1745710248072,-322.82572,0.00019986,2]
[359107729,1745710248082,-322.82572,0.00019986,2]
[359107731,1745710248091,-827.293328,0.00019986,2]
[359107733,1745710248100,-151.0,0.00019986,2]
[359107735,1745710248111,-827.293328,0.00019986,2]
[359107737,1745710248120,-151.0,0.00019986,2]
[359107739,1745710248130,-254.377851,0.00019986,2]
[359107741,1745710248140,-151.0,0.00019986,2]
[359107743,1745710248150,-151.0,0.00019986,2]
[359107745,1745710248160,-151.0,0.00019986,2]
[359107747,1745710248169,-151.0,0.00019986,2]
[359107748,1745710248179,-156.646834,0.00019986,2]
[359107750,1745710248188,-163.421921,0.00019986,2]
[359107752,1745710248198,-151.0,0.00019986,2]
[359107754,1745710248207,-151.0,0.00019986,2]
[359107756,1745710248216,-151.0,0.00019986,2]
[359107758,1745710248225,-151.0,0.00019986,2]
[359107760,1745710248235,-151.0,0.00019986,2]
[359107762,1745710248244,-158.679657,0.00019986,2]
[359107764,1745710248254,-270.31,0.00019986,2]
[359107766,1745710248263,-494.981625,0.00019986,2]
[359107768,1745710248273,-494.981625,0.00019986,2]
[359107769,1745710248282,-151.0,0.00019986,2]
[359107771,1745710248292,-151.0,0.00019986,2]
[359107773,1745710248301,-151.0,0.00019986,2]
[359107775,1745710248311,-160.503751,0.00019986,2]
[359107777,1745710248320,-151.0,0.00019986,2]
[359107779,1745710248330,-278.4008643,0.0001999,2]
[359107781,1745710248339,-212.45001774,0.0001999,2]
[359107783,1745710248350,-212.45001774,0.0001999,2]
[359107785,1745710248360,-612.0,0.00019994,2]
[359107787,1745710248370,-500.0,0.00019998,2]
[359107789,1745710248379,-500.0,0.00019998,2]
[359107791,1745710248389,-500.0,0.00019998,2]
[359107793,1745710248398,-500.0,0.00019998,2]
[359107795,1745710248407,-300.0,0.00019999,2]
[359107797,1745710248417,-300.0,0.00019999,2]
[359107798,1745710248426,-432.76976354,0.00019999,2]
[359107800,1745710248436,-666.0,0.00019999,2]
[359107802,1745710248446,-300.0,0.00019999,2]
[359107804,1745710248456,-200.0,0.00019999,2]
[359107806,1745710248465,-1000.0,0.00019999,2]
[359107808,1745710248474,-1000.0,0.00019999,2]
[359107810,1745710248484,-1000.0,0.00019999,2]
[359107812,1745710248493,-1000.0,0.00019999,2]
[359107814,1745710248502,-1000.0,0.00019999,2]
[359107816,1745710248511,-1000.0,0.00019999,2]
[359107818,1745710248521,-1000.0,0.00019999,2]
[359107820,1745710248530,-1000.0,0.00019999,2]
[359107822,1745710248540,-1000.0,0.00019999,2]
[359107824,1745710248549,-1000.0,0.00019999,2]
[359107826,1745710248559,-1000.0,0.00019999,2]
[359107827,1745710248568,-1000.0,0.00019999,2]
[359107829,1745710248577,-1000.0,0.00019999,2]
[359107831,1745710248587,-1000.0,0.00019999,2]
[359107833,1745710248599,-1000.0,0.00019999,2]
[359107835,1745710248608,-1000.0,0.00019999,2]
[359107837,1745710248618,-1000.0,0.00019999,2]
[359107839,1745710248628,-1000.0,0.00019999,2]
[359107841,1745710248638,-1000.0,0.00019999,2]
[359107843,1745710248647,-1000.0,0.00019999,2]
[359107845,1745710248657,-1000.0,0.00019999,2]
[359107847,1745710248666,-1000.0,0.00019999,2]
[359107849,1745710248676,-1000.0,0.00019999,2]
[359107851,1745710248685,-1000.0,0.00019999,2]
[359107853,1745710248695,-1000.0,0.00019999,2]
[359107855,1745710248704,-1000.0,0.00019999,2]
[359107857,1745710248714,-1000.0,0.00019999,2]
[359107859,1745710248723,-1000.0,0.00019999,2]
[359107861,1745710248732,-1000.0,0.00019999,2]
[359107863,1745710248742,-1000.0,0.00019999,2]
[359107865,1745710248751,-1000.0,0.00019999,2]
[359107867,1745710248760,-702.36256316,0.00019999,2]
[359107869,1745710248770,-151.0,0.00019999,2]
[359107871,1745710248779,-151.0,0.00019999,2]
[359107873,1745710248788,-151.0,0.00019999,2]
[359107875,1745710248797,-151.0,0.00019999,2]
[359107876,1745710248807,-151.0,0.00019999,2]
[359107878,1745710248815,-151.0,0.00019999,2]
[359107880,1745710248824,-176.852989,0.00019999,2]
[359107882,1745710248834,-151.0,0.00019999,2]
[359107884,1745710248843,-186.387326,0.00019999,2]
[359107886,1745710248853,-186.387326,0.00019999,2]
[359107888,1745710248862,-151.0,0.00019999,2]
[359107890,1745710248871,-151.0,0.00019999,2]
[359107892,1745710248880,-151.0,0.00019999,2]
[359107894,1745710248890,-151.0,0.00019999,2]
[359107896,1745710248900,-834.631864,0.00019999,2]
[359107898,1745710248909,-834.631864,0.00019999,2]
[359107900,1745710248919,-151.0,0.00019999,2]
[359107902,1745710248928,-500.0,0.00019999,2]
[359107904,1745710248937,-628.450043,0.00019999,2]
[359107906,1745710248946,-500.0,0.00019999,2]
[359107908,1745710248955,-500.0,0.00019999,2]
[359107910,1745710248964,-276.175567,0.00019999,2]
[359107911,1745710248974,-628.450043,0.00019999,2]
[359107912,1745710248983,-276.175567,0.00019999,2]
[359107913,1745710248992,-21881.04162313,0.00019999,2]
[359107914,1745710249002,-170.07599,0.00019999,2]
[359107916,1745710249011,-170.07599,0.00019999,2]
[359107918,1745710249020,-322.82572,0.00019999,2]
[359107920,1745710249030,-500.0,0.00019999,2]
[359107921,1745710249039,-500.0,0.00019999,2]
[359107922,1745710249048,-500.0,0.00019999,2]
[359107924,1745710249058,-500.0,0.00019999,2]
[359107926,1745710249071,-500.0,0.00019999,2]
[359107928,1745710249082,-500.0,0.00019999,2]
[359107930,1745710249091,-500.0,0.00019999,2]
[359107932,1745710249101,-500.0,0.00019999,2]
[359107934,1745710249111,-500.0,0.00019999,2]
[359107935,1745710249120,-500.0,0.00019999,2]
[359107937,1745710249130,-500.0,0.00019999,2]
[359107939,1745710249140,-500.0,0.00019999,2]
[359107941,1745710249149,-500.0,0.00019999,2]
[359107943,1745710249159,-500.0,0.00019999,2]
[359107945,1745710249168,-500.0,0.00019999,2]
[359107947,1745710249178,-409.43,0.00019999,2]
[359107949,1745710249189,-500.0,0.00019999,2]
[359107951,1745710249198,-500.0,0.00019999,2]
[359107953,1745710249207,-500.0,0.00019999,2]
[359107955,1745710249217,-500.0,0.00019999,2]
[359107957,1745710249227,-500.0,0.00019999,2]
[359107959,1745710249236,-500.0,0.00019999,2]
[359107961,1745710249247,-500.0,0.00019999,2]
[359107963,1745710249256,-422.60117237,0.00019999,2]
[359107965,1745710249265,-322.82572,0.00019999,2]
[359107966,1745710249275,-827.293328,0.00019999,2]
[359107969,1745710249285,-827.293328,0.00019999,2]
[359107970,1745710249295,-500.0,0.00019999,2]
[359107972,1745710249304,-500.0,0.00019999,2]
[359107974,1745710249313,-500.0,0.00019999,2]
[359107976,1745710249323,-500.0,0.00019999,2]
[359107978,1745710249332,-500.0,0.00019999,2]
[359107980,1745710249342,-500.0,0.00019999,2]
[359107982,1745710249351,-500.0,0.00019999,2]
[359107984,1745710249361,-500.0,0.00019999,2]
[359107986,1745710249370,-186.21126689,0.00019999,2]
[359107988,1745710249380,-151.0,0.00019999,2]
[359107989,1745710249389,-151.0,0.00019999,2]
[359107990,1745710249399,-151.0,0.00019999,2]
[359107991,1745710249410,-153.192787,0.00019999,2]
[359107992,1745710249419,-494.981625,0.00019999,2]
[359107993,1745710249428,-494.981625,0.00019999,2]
[359107994,1745710249438,-151.0,0.00019999,2]
[359107995,1745710249448,-151.0,0.00019999,2]
[359107996,1745710249457,-151.0,0.00019999,2]
[359107997,1745710249467,-670.13,0.00019999,2]
[359107998,1745710249477,-670.13,0.00019999,2]
[359107999,1745710249487,-670.13,0.00019999,2]
[359108000,1745710249497,-670.13,0.00019999,2]
[359108001,1745710249507,-670.13,0.00019999,2]
[359108002,1745710249516,-670.13,0.00019999,2]
[359108003,1745710249527,-670.13,0.00019999,2]
[359108004,1745710249537,-670.13,0.00019999,2]
[359108005,1745710249546,-670.13,0.00019999,2]
[359108006,1745710249556,-670.13,0.00019999,2]
[359108007,1745710249565,-670.13,0.00019999,2]
[359108008,1745710249575,-670.13,0.00019999,2]
[359108009,1745710249584,-90703.91783698,0.0002,2]
[359108011,1745710249600,-5156.462,0.0002,2]
[359108018,1745710250152,-400.0,0.00019699,2]
[359108019,1745710250163,-74.125,0.00019699,2]
[359108020,1745710250491,-388.715,0.00019699,2]
[359108021,1745710250501,-877.0,0.00019956,2]
[359108022,1745710250511,-400.0,0.00019973,2]
[359108023,1745710250521,-400.0,0.00019973,2]
[359108024,1745710250531,-400.0,0.00019973,2]
[359108025,1745710250541,-462.84,0.00019973,2]
[359108026,1745710250551,-151.0,0.00019985,2]
[359108027,1745710250560,-151.0,0.00019986,2]
[359108028,1745710250570,-670.13,0.00019999,2]
[359108029,1745710250580,-670.13,0.00019999,2]
[359108030,1745710250589,-670.13,0.00019999,2]
[359108031,1745710250600,-670.13,0.00019999,2]
[359108032,1745710250610,-670.13,0.00019999,2]
[359108033,1745710250620,-670.22269996,0.00019999,2]
[359108034,1745710250630,-81916.69811997,0.0002,2]
[359108035,1745710250646,-5610.54994812,0.0002,2]
[359108036,1745710250658,-94897.24089316,0.0002,2]
[359108037,1745710251203,-400.0,0.00019774,2]
[359108038,1745710251216,-400.0,0.00019775,2]
[359108039,1745710251227,-400.0,0.00019775,2]
[359108040,1745710251239,-105.69449663,0.00019985,2]
[359108041,1745710251253,-45.30550337,0.00019985,2]
[359108042,1745710251264,-151.0,0.00019985,2]
[359108043,1745710251275,-151.0,0.00019999,2]
[359108044,1745710251286,-2377.59449663,0.0002,2]
[359108045,1745710253775,321.39,0.00017162,2]
[359108054,1745710336838,301.0,0.00036986,60]
[359108065,1745710587298,165.68,0.000369,60]
[359108066,1745710856512,1000.0,0.0001879,2]
[359108067,1745710923805,229.0,0.00036986,120]
[359108068,1745711017513,270.31,0.00019301,2]
[359108069,1745711155624,266.4374589,0.00036985,60]
[359108070,1745711229656,150.0,0.00018764,7]
[359108072,1745711275726,250.0,0.00017,2]
[359108073,1745711276726,300.0,0.00019,2]
[359108134,1745711310488,305.32,0.00016836,2]
[359108135,1745711310984,305.32,0.00019099,2]
[359108136,1745711395005,821.74,0.00018741,2]
[359108138,1745711419508,10149.91,0.00018739,2]
[359108142,1745711431909,-166.67,0.0001933,2]
[359108143,1745711431920,-133.33,0.00019448,2]
[359108144,1745711431945,-66.67,0.00019448,2]
[359108145,1745711431956,-184.37828034,0.00019509,2]
[359108146,1745711432005,-1336.31236293,0.00019509,2]
[359108147,1745711432017,-2559.30935673,0.00019509,2]
[359108148,1745711432026,-200.0,0.00019545,2]
[359108149,1745711432036,-1200.0,0.00019598,2]
[359108150,1745711432045,-1465.42194765,0.00019599,2]
[359108151,1745711432054,-198.98361413,0.00019599,2]
[359108152,1745711432063,-849.31864012,0.00019599,2]
[359108153,1745711432073,-300.0,0.00019631,2]
[359108154,1745711432082,-1465.42194763,0.00019632,2]
[359108155,1745711432092,-849.31864012,0.00019632,2]
[359108156,1745711432101,-198.9836141,0.00019642,2]
[359108157,1745711432110,-1465.42194763,0.00019666,2]
[359108158,1745711432119,-849.31864012,0.00019666,2]
[359108159,1745711432130,-300.0,0.00019673,2]
[359108160,1745711432139,-500.0,0.00019673,2]
[359108161,1745711432149,-198.9836141,0.00019685,2]
[359108162,1745711432159,-207.4,0.00019687,2]
[359108163,1745711432169,-2700.52,0.00019688,2]
[359108164,1745711432178,-500.0,0.00019697,2]
[359108165,1745711432187,-336.21984949,0.00019697,2]
[359108166,1745711432197,-400.0,0.00019697,2]
[359108167,1745711432206,-400.0,0.00019697,2]
[359108168,1745711432216,-400.0,0.00019697,2]
[359108169,1745711432225,-400.0,0.00019697,2]
[359108170,1745711432235,-400.0,0.00019697,2]
[359108171,1745711432244,-9566.605811,0.00019698,2]
[359108172,1745711432254,-207.751238,0.00019698,2]
[359108174,1745711432263,-202.565733,0.00019698,2]
[359108175,1745711432273,-632.49,0.00019698,2]
[359108176,1745711432283,-434.23,0.00019698,2]
[359108177,1745711432292,-200.0,0.00019698,2]
[359108178,1745711432301,-400.0,0.00019698,2]
[359108179,1745711432311,-400.0,0.00019698,2]
[359108180,1745711432321,-400.0,0.00019698,2]
[359108181,1745711432330,-400.0,0.00019698,2]
[359108182,1745711432340,-953.79,0.00019698,2]
[359108183,1745711432349,-400.0,0.00019698,2]
[359108184,1745711432360,-400.0,0.00019698,2]
[359108185,1745711432370,-421.57,0.00019698,2]
[359108186,1745711432379,-400.0,0.00019698,2]
[359108187,1745711432388,-400.0,0.00019698,2]
[359108188,1745711432399,-400.0,0.00019698,2]
[359108189,1745711432408,-426.29,0.00019698,2]
[359108190,1745711432418,-400.0,0.00019698,2]
[359108192,1745711432428,-430.85,0.00019698,2]
[359108194,1745711432438,-445.64,0.00019698,2]
[359108196,1745711432447,-400.0,0.00019698,2]
[359108199,1745711432456,-400.0,0.00019698,2]
[359108201,1745711432466,-400.0,0.00019698,2]
[359108202,1745711432476,-400.0,0.00019698,2]
[359108203,1745711432486,-457.16229507,0.00019698,2]
[359108204,1745711432496,-400.0,0.00019698,2]
[359108205,1745711432506,-400.0,0.00019698,2]
[359108206,1745711432515,-542.91,0.00019698,2]
[359108207,1745711432524,-462.21,0.00019698,2]
[359108208,1745711432534,-400.0,0.00019698,2]
[359108209,1745711432543,-400.0,0.00019698,2]
[359108210,1745711432553,-400.0,0.00019698,2]
[359108211,1745711432562,-416.46,0.00019698,2]
[359108212,1745711432571,-400.0,0.00019698,2]
[359108213,1745711432582,-412.77,0.00019698,2]
[359108214,1745711432591,-864.43,0.00019698,2]
[359108215,1745711432600,-1512.82,0.00019698,2]
[359108216,1745711432609,-400.0,0.00019698,2]
[359108217,1745711432619,-400.0,0.00019698,2]
[359108218,1745711432629,-788.32,0.00019698,2]
[359108219,1745711432638,-400.0,0.00019698,2]
[359108220,1745711432648,-150.99,0.00019698,2]
[359108221,1745711432657,-499.99,0.00019698,2]
[359108222,1745711432667,-8820.74,0.00019698,2]
[359108223,1745711432676,-400.0,0.00019698,2]
[359108224,1745711432686,-400.0,0.00019698,2]
[359108225,1745711432695,-645.4,0.00019698,2]
[359108226,1745711432705,-400.0,0.00019698,2]
[359108227,1745711432714,-329.78508261,0.00019698,2]
[359108228,1745711433164,-75.13491739,0.00019698,2]
[359108229,1745711433175,-379.08008211,0.00019698,2]
[359108230,1745711433191,-250.69991789,0.00019698,2]
[359108231,1745711433201,-599.62,0.00019698,2]
[359108232,1745711433211,-400.0,0.00019698,2]
[359108233,1745711433221,-400.0,0.00019698,2]
[359108234,1745711433230,-400.0,0.00019698,2]
[359108235,1745711433240,-417.58,0.00019698,2]
[359108236,1745711433249,-400.0,0.00019698,2]
[359108237,1745711433259,-400.0,0.00019698,2]
[359108238,1745711433269,-400.0,0.00019698,2]
[359108239,1745711433279,-400.0,0.00019698,2]
[359108240,1745711433290,-400.0,0.00019698,2]
[359108241,1745711433299,-400.0,0.00019698,2]
[359108242,1745711433309,-400.0,0.00019698,2]
[359108243,1745711433319,-483.53,0.00019698,2]
[359108244,1745711433328,-400.0,0.00019698,2]
[359108245,1745711433338,-400.0,0.00019698,2]
[359108246,1745711433348,-400.0,0.00019698,2]
[359108247,1745711433357,-400.0,0.00019698,2]
[359108248,1745711433367,-469.05,0.00019698,2]
[359108249,1745711433377,-400.0,0.00019698,2]
[359108250,1745711433387,-400.0,0.00019698,2]
[359108251,1745711433397,-88.12341124,0.00019698,2]
[359108252,1745711433433,-479.55658876,0.00019698,2]
[359108253,1745711433444,-400.0,0.00019698,2]
[359108254,1745711433455,-400.0,0.00019698,2]
[359108255,1745711433464,-400.0,0.00019698,2]
[359108256,1745711433474,-400.0,0.00019698,2]
[359108257,1745711433484,-400.0,0.00019698,2]
[359108258,1745711433494,-400.0,0.00019698,2]
[359108259,1745711433504,-400.0,0.00019698,2]
[359108260,1745711433515,-400.0,0.00019698,2]
[359108261,1745711433525,-266.49620995,0.00019698,2]
[359108263,1745711437993,-416.14,0.00019697,2]
[359108264,1745711438004,-606.14,0.00019697,2]
[359108265,1745711438014,-133.50379005,0.00019698,2]
[359108266,1745711438024,-473.13,0.00019698,2]
[359108267,1745711438034,-612.63,0.00019698,2]
[359108268,1745711438043,-400.0,0.00019698,2]
[359108269,1745711438053,-400.0,0.00019698,2]
[359108270,1745711438063,-400.0,0.00019698,2]
[359108271,1745711438073,-400.0,0.00019698,2]
[359108272,1745711438083,-400.0,0.00019698,2]
[359108273,1745711438093,-400.0,0.00019698,2]
[359108274,1745711438102,-548.60708015,0.00019698,2]
[359108275,1745711438112,-400.0,0.00019698,2]
[359108276,1745711438122,-4035.47,0.00019698,2]
[359108277,1745711438131,-400.0,0.00019698,2]
[359108278,1745711438141,-400.0,0.00019698,2]
[359108279,1745711438151,-450.84,0.00019698,2]
[359108281,1745711438161,-250.0,0.00019698,2]
[359108283,1745711438171,-549.71,0.00019698,2]
[359108285,1745711438181,-539.33,0.00019698,2]
[359108286,1745711438191,-553.93,0.00019698,2]
[359108287,1745711438201,-400.0,0.00019698,2]
[359108318,1745711438556,-461.02,0.00019698,2]
[359108320,1745711438566,-400.0,0.00019698,2]
[359108322,1745711438583,-1773.52,0.00019698,2]
[359108324,1745711438593,-450.91,0.00019698,2]
[359108326,1745711438603,-400.0,0.00019698,2]
[359108329,1745711438613,-400.0,0.00019698,2]
[359108331,1745711438623,-215.80456148,0.00019698,2]
[359108333,1745711438633,-400.0,0.00019698,2]
[359108335,1745711438644,-400.0,0.00019698,2]
[359108337,1745711438654,-400.0,0.00019698,2]
[359108339,1745711438665,-78238.74,0.00019698,2]
[359108341,1745711438675,-400.0,0.00019698,2]
[359108343,1745711438685,-461.3921061,0.00019698,2]
[359108345,1745711438695,-400.0,0.00019698,2]
[359108347,1745711438705,-400.0,0.00019698,2]
[359108349,1745711438714,-400.0,0.00019698,2]
[359108351,1745711438724,-701.5,0.00019698,2]
[359108353,1745711438734,-8936.62,0.00019698,2]
[359108355,1745711438744,-498.68,0.00019698,2]
[359108357,1745711438754,-400.0,0.00019698,2]
[359108359,1745711438764,-501.0,0.00019698,2]
[359108361,1745711438774,-489.05,0.00019698,2]
[359108363,1745711438785,-4462.53,0.00019698,2]
[359108365,1745711438796,-400.0,0.00019698,2]
[359108367,1745711438806,-400.0,0.00019698,2]
[359108369,1745711438815,-475.38,0.00019698,2]
[359108371,1745711438825,-88538.02,0.00019698,2]
[359108373,1745711438841,-1849.04,0.00019698,2]
[359108375,1745711438851,-400.0,0.00019698,2]
[359108377,1745711438861,-400.0,0.00019698,2]
[359108379,1745711438871,-782.38,0.00019698,2]
[359108381,1745711438881,-400.0,0.00019698,2]
[359108383,1745711438890,-400.0,0.00019698,2]
[359108385,1745711438900,-510.59,0.00019698,2]
[359108387,1745711438910,-400.0,0.00019698,2]
[359108389,1745711438921,-200.0,0.00019698,2]
[359108391,1745711438931,-400.0,0.00019698,2]
[359108393,1745711438943,-478.55,0.00019698,2]
[359108395,1745711438953,-758.85,0.00019698,2]
[359108397,1745711438962,-400.0,0.00019698,2]
[359108399,1745711438972,-832.81,0.00019698,2]
[359108401,1745711438982,-400.0,0.00019698,2]
[359108403,1745711438993,-2176.15,0.00019698,2]
[359108405,1745711439004,-535.31,0.00019698,2]
[359108408,1745711439017,-680.79,0.00019698,2]
[359108410,1745711439028,-240.5473059,0.00019698,2]
[359108412,1745711439038,-400.0,0.00019698,2]
[359108414,1745711439048,-543.79,0.00019698,2]
[359108416,1745711439059,-400.0,0.00019698,2]
[359108418,1745711439068,-400.0,0.00019698,2]
[359108420,1745711439079,-1319.18,0.00019698,2]
[359108422,1745711439090,-400.0,0.00019698,2]
[359108424,1745711439100,-400.0,0.00019698,2]
[359108426,1745711439110,-400.0,0.00019698,2]
[359108428,1745711439120,-400.0,0.00019698,2]
[359108430,1745711439130,-400.0,0.00019698,2]
[359108432,1745711439140,-400.0,0.00019698,2]
[359108434,1745711439151,-400.0,0.00019698,2]
[359108436,1745711439161,-400.0,0.00019698,2]
[359108438,1745711439171,-400.0,0.00019698,2]
[359108440,1745711439181,-400.0,0.00019698,2]
[359108442,1745711439191,-400.0,0.00019698,2]
[359108444,1745711439202,-200.0,0.00019698,2]
[359108446,1745711439212,-500.0,0.00019698,2]
[359108448,1745711439222,-400.0,0.00019698,2]
[359108450,1745711439232,-400.0,0.00019698,2]
[359108452,1745711439243,-400.0,0.00019698,2]
[359108455,1745711439253,-400.0,0.00019698,2]
[359108457,1745711439263,-400.0,0.00019698,2]
[359108458,1745711439273,-402.11,0.00019698,2]
[359108461,1745711439284,-512.46,0.00019698,2]
[359108463,1745711439293,-400.0,0.00019698,2]
[359108465,1745711439303,-400.0,0.00019698,2]
[359108467,1745711439313,-400.0,0.00019698,2]
[359108469,1745711439323,-527.91,0.00019698,2]
[359108471,1745711439335,-579.21,0.00019698,2]
[359108472,1745711439345,-302.0511064,0.00019698,2]
[359108475,1745711439357,-809.59,0.00019698,2]
[359108476,1745711439367,-554.08,0.00019698,2]
[359108479,1745711439377,-393.42007666,0.00019698,2]
[359108481,1745711439387,-400.0,0.00019698,2]
[359108483,1745711439397,-400.0,0.00019698,2]
[359108485,1745711439406,-600.51,0.00019698,2]
[359108487,1745711439416,-400.0,0.00019698,2]
[359108489,1745711439426,-750.36,0.00019698,2]
[359108491,1745711439436,-400.0,0.00019698,2]
[359108493,1745711439446,-334.48947172,0.00019698,2]
[359108495,1745711439455,-400.0,0.00019698,2]
[359108497,1745711439465,-400.0,0.00019698,2]
[359108499,1745711439476,-400.0,0.00019698,2]
[359108501,1745711439486,-518.4,0.00019698,2]
[359108503,1745711439495,-489.51,0.00019698,2]
[359108505,1745711439505,-475.32,0.00019698,2]
[359108507,1745711439515,-400.0,0.00019698,2]
[359108509,1745711439525,-400.0,0.00019698,2]
[359108511,1745711439535,-400.0,0.00019698,2]
[359108513,1745711439544,-400.0,0.00019698,2]
[359108515,1745711439554,-674.9,0.00019698,2]
[359108516,1745711439563,-400.0,0.00019698,2]
[359108519,1745711439573,-574.14,0.00019698,2]
[359108520,1745711439584,-1127.39,0.00019698,2]
[359108523,1745711439594,-400.0,0.00019698,2]
[359108525,1745711439604,-723.18,0.00019698,2]
[359108527,1745711439615,-706.29,0.00019698,2]
[359108529,1745711439626,-500.0,0.00019698,2]
[359108531,1745711439636,-459.1,0.00019698,2]
[359108532,1745711439646,-400.0,0.00019698,2]
[359108534,1745711439656,-522.96,0.00019698,2]
[359108537,1745711439666,-722.37,0.00019698,2]
[359108539,1745711439676,-505.2,0.00019698,2]
[359108541,1745711439687,-400.0,0.00019698,2]
[359108543,1745711439697,-400.0,0.00019698,2]
[359108545,1745711439707,-501.33,0.00019698,2]
[359108546,1745711439717,-463.81,0.00019698,2]
[359108549,1745711439727,-400.0,0.00019698,2]
[359108551,1745711439738,-542.17,0.00019698,2]
[359108553,1745711439748,-200.0,0.00019698,2]
[359108555,1745711439757,-416.89076597,0.00019698,2]
[359108557,1745711439767,-615.23,0.00019698,2]
[359108559,1745711439776,-523.55,0.00019698,2]
[359108561,1745711439786,-400.0,0.00019698,2]
[359108563,1745711439796,-400.0,0.00019698,2]
[359108565,1745711439806,-400.0,0.00019698,2]
[359108567,1745711439821,-507.32,0.00019698,2]
[359108569,1745711439833,-856.92,0.00019698,2]
[359108571,1745711439844,-510.91,0.00019698,2]
[359108573,1745711439853,-463.29,0.00019698,2]
[359108575,1745711439863,-400.0,0.00019698,2]
[359108578,1745711439873,-483.32,0.00019698,2]
[359108580,1745711439883,-400.0,0.00019698,2]
[359108582,1745711439893,-200.0,0.00019698,2]
[359108584,1745711439903,-788.75,0.00019698,2]
[359108587,1745711439913,-400.0,0.00019698,2]
[359108589,1745711439923,-400.0,0.00019698,2]
[359108591,1745711439933,-400.0,0.00019698,2]
[359108593,1745711439942,-400.0,0.00019698,2]
[359108595,1745711439952,-400.0,0.00019698,2]
[359108597,1745711439962,-591.56,0.00019698,2]
[359108599,1745711439973,-400.0,0.00019698,2]
[359108601,1745711439983,-2131.63,0.00019698,2]
[359108603,1745711439993,-200.0,0.00019698,2]
[359108605,1745711440003,-400.0,0.00019698,2]
[359108607,1745711440013,-457.49,0.00019698,2]
[359108609,1745711440023,-400.0,0.00019698,2]
[359108611,1745711440034,-428.67,0.00019698,2]
[359108613,1745711440043,-400.0,0.00019698,2]
[359108615,1745711440053,-532.66,0.00019698,2]
[359108617,1745711440063,-2356.04,0.00019698,2]
[359108619,1745711440073,-400.0,0.00019698,2]
[359108621,1745711440083,-500.0,0.00019698,2]